fUSD/lending_fUSD_20260113
["ID","MTS","AMOUNT","RATE_DAILY","PERIOD"]
[401487972,1768264243943,-548.389332,0.00017368,2]
[401487973,1768264243952,-151.0,0.00017368,2]
[401487974,1768264243963,-548.389332,0.00017368,2]
[401487975,1768264243972,-548.389332,0.00017368,2]
[401487976,1768264243981,-394.055992,0.00017368,2]
[401487977,1768264243990,-733.573739,0.00017368,2]
[401487978,1768264244000,-394.055992,0.00017368,2]
[401487979,1768264244010,-733.573739,0.00017368,2]
[401487980,1768264244019,-310.760854,0.00017368,2]
[401487981,1768264244028,-310.760854,0.00017368,2]
[401487982,1768264244037,-733.573739,0.00017368,2]
[401487983,1768264244047,-733.573739,0.00017368,2]
[401487984,1768264244057,-394.055992,0.00017368,2]
[401487985,1768264244066,-151.0,0.00017368,2]
[401487986,1768264244075,-310.760854,0.00017368,2]
[401487987,1768264244085,-151.0,0.00017368,2]
[401487988,1768264244094,-310.760854,0.00017368,2]
[401487989,1768264244103,-733.573739,0.00017368,2]
[401487990,1768264244112,-733.573739,0.00017368,2]
[401487991,1768264244121,-394.055992,0.00017368,2]
[401487992,1768264244130,-310.760854,0.00017368,2]
[401487993,1768264244139,-733.573739,0.00017368,2]
[401487994,1768264244149,-310.760854,0.00017368,2]
[401487995,1768264244158,-733.573739,0.00017368,2]
[401487997,1768264244167,-310.760854,0.00017368,2]
[401487998,1768264244176,-310.760854,0.00017368,2]
[401488000,1768264244186,-151.0,0.00017368,2]
[401488002,1768264244195,-151.0,0.00017368,2]
[401488005,1768264244204,-151.0,0.00017368,2]
[401488006,1768264244213,-151.0,0.00017368,2]
[401488007,1768264244222,-173.695374,0.00017368,2]
[401488008,1768264244232,-173.695374,0.00017368,2]
[401488009,1768264244241,-173.695374,0.00017368,2]
[401488010,1768264244251,-173.695374,0.00017368,2]
[401488011,1768264244261,-151.0,0.00017368,2]
[401488012,1768264244270,-151.0,0.00017368,2]
[401488013,1768264244280,-151.0,0.00017368,2]
[401488014,1768264244290,-151.0,0.00017368,2]
[401488015,1768264244299,-151.0,0.00017368,2]
[401488016,1768264244309,-173.695374,0.00017368,2]
[401488017,1768264244319,-151.0,0.00017368,2]
[401488018,1768264244329,-173.695374,0.00017368,2]
[401488019,1768264244338,-173.695374,0.00017368,2]
[401488020,1768264244348,-173.695374,0.00017368,2]
[401488021,1768264244357,-151.0,0.00017368,2]
[401488022,1768264244366,-189.842185,0.00017368,2]
[401488023,1768264244376,-218.07548,0.00017368,2]
[401488024,1768264244387,-218.07548,0.00017368,2]
[401488025,1768264244396,-218.07548,0.00017368,2]
[401488026,1768264244405,-218.07548,0.00017368,2]
[401488027,1768264244415,-151.0,0.00017368,2]
[401488028,1768264244424,-151.0,0.00017368,2]
[401488029,1768264244434,-151.0,0.00017368,2]
[401488030,1768264244443,-151.0,0.00017368,2]
[401488031,1768264244453,-151.0,0.00017368,2]
[401488032,1768264244462,-162.028921,0.00017368,2]
[401488033,1768264244471,-162.028921,0.00017368,2]
[401488034,1768264244481,-162.028921,0.00017368,2]
[401488035,1768264244490,-162.028921,0.00017368,2]
[401488036,1768264244500,-151.0,0.00017368,2]
[401488037,1768264244509,-370.22612,0.00017368,2]
[401488038,1768264244518,-370.22612,0.00017368,2]
[401488039,1768264244527,-370.22612,0.00017368,2]
[401488040,1768264244537,-370.22612,0.00017368,2]
[401488041,1768264244546,-179.907006,0.00017368,2]
[401488042,1768264244555,-151.0,0.00017368,2]
[401488043,1768264244565,-151.0,0.00017368,2]
[401488044,1768264244574,-151.0,0.00017368,2]
[401488045,1768264244583,-190.712931,0.00017368,2]
[401488046,1768264244593,-174.035148,0.00017368,2]
[401488047,1768264244602,-151.0,0.00017368,2]
[401488048,1768264244611,-151.0,0.00017368,2]
[401488049,1768264244620,-151.0,0.00017368,2]
[401488050,1768264244630,-151.0,0.00017368,2]
[401488051,1768264244639,-151.0,0.00017368,2]
[401488052,1768264244649,-151.0,0.00017368,2]
[401488053,1768264244659,-151.0,0.00017368,2]
[401488054,1768264244668,-151.0,0.00017368,2]
[401488055,1768264244677,-194.176743,0.00017368,2]
[401488056,1768264244687,-151.0,0.00017368,2]
[401488057,1768264244696,-151.0,0.00017368,2]
[401488058,1768264244705,-151.0,0.00017368,2]
[401488059,1768264244715,-151.756692,0.00017368,2]
[401488060,1768264244724,-224.90038,0.00017368,2]
[401488061,1768264244733,-224.90038,0.00017368,2]
[401488062,1768264244743,-224.90038,0.00017368,2]
[401488063,1768264244752,-224.90038,0.00017368,2]
[401488064,1768264244761,-224.90038,0.00017368,2]
[401488065,1768264244771,-224.90038,0.00017368,2]
[401488066,1768264244780,-224.90038,0.00017368,2]
[401488067,1768264244789,-224.90038,0.00017368,2]
[401488068,1768264244799,-151.0,0.00017368,2]
[401488069,1768264244808,-151.0,0.00017368,2]
[401488070,1768264244817,-151.0,0.00017368,2]
[401488071,1768264244827,-151.0,0.00017368,2]
[401488072,1768264244836,-151.0,0.00017368,2]
[401488073,1768264244845,-731.008007,0.00017368,2]
[401488074,1768264244855,-731.008007,0.00017368,2]
[401488075,1768264244865,-731.008007,0.00017368,2]
[401488076,1768264244874,-731.008007,0.00017368,2]
[401488077,1768264244883,-731.008007,0.00017368,2]
[401488078,1768264244893,-731.008007,0.00017368,2]
[401488079,1768264244907,-156.174364,0.00017368,2]
[401488080,1768264244917,-731.008007,0.00017368,2]
[401488081,1768264244926,-731.008007,0.00017368,2]
[401488082,1768264244936,-152.718156,0.00017368,2]
[401488083,1768264244946,-151.0,0.00017368,2]
[401488084,1768264244956,-151.0,0.00017368,2]
[401488085,1768264244965,-151.0,0.00017368,2]
[401488086,1768264244974,-151.0,0.00017368,2]
[401488087,1768264244983,-151.0,0.00017368,2]
[401488088,1768264244993,-151.0,0.00017368,2]
[401488089,1768264245002,-915.983122,0.00017368,2]
[401488090,1768264245012,-915.983122,0.00017368,2]
[401488091,1768264245022,-915.983122,0.00017368,2]
[401488092,1768264245031,-915.983122,0.00017368,2]
[401488093,1768264245040,-915.983122,0.00017368,2]
[401488094,1768264245049,-915.983122,0.00017368,2]
[401488095,1768264245059,-151.0,0.00017368,2]
[401488096,1768264245068,-915.983122,0.00017368,2]
[401488097,1768264245077,-151.0,0.00017368,2]
[401488098,1768264245087,-915.983122,0.00017368,2]
[401488099,1768264245096,-1560.747325,0.00017368,2]
[401488100,1768264245106,-1560.747325,0.00017368,2]
[401488101,1768264245116,-151.0,0.00017368,2]
[401488102,1768264245125,-151.0,0.00017368,2]
[401488103,1768264245134,-1560.747325,0.00017368,2]
[401488104,1768264245144,-1560.747325,0.00017368,2]
[401488105,1768264245153,-1560.747325,0.00017368,2]
[401488106,1768264245162,-1560.747325,0.00017368,2]
[401488107,1768264245172,-151.0,0.00017368,2]
[401488108,1768264245181,-151.0,0.00017368,2]
[401488109,1768264245190,-1560.747325,0.00017368,2]
[401488110,1768264245200,-1560.747325,0.00017368,2]
[401488111,1768264245209,-151.0,0.00017368,2]
[401488112,1768264245219,-184.549505,0.00017368,2]
[401488113,1768264245229,-184.549505,0.00017368,2]
[401488114,1768264245238,-841.865477,0.00017368,2]
[401488115,1768264245248,-184.549505,0.00017368,2]
[401488116,1768264245257,-184.549505,0.00017368,2]
[401488117,1768264245267,-841.865477,0.00017368,2]
[401488118,1768264245277,-184.549505,0.00017368,2]
[401488119,1768264245286,-184.549505,0.00017368,2]
[401488120,1768264245295,-841.865477,0.00017368,2]
[401488121,1768264245305,-184.549505,0.00017368,2]
[401488122,1768264245314,-184.549505,0.00017368,2]
[401488123,1768264245324,-841.865477,0.00017368,2]
[401488124,1768264245333,-151.0,0.00017368,2]
[401488125,1768264245343,-151.0,0.00017368,2]
[401488126,1768264245353,-151.0,0.00017368,2]
[401488127,1768264245363,-151.0,0.00017368,2]
[401488128,1768264245373,-151.0,0.00017368,2]
[401488129,1768264245382,-151.0,0.00017368,2]
[401488130,1768264245392,-5002.435007,0.00017368,2]
[401488131,1768264245402,-5002.435007,0.00017368,2]
[401488132,1768264245412,-1068.697227,0.00017368,2]
[401488133,1768264245421,-151.0,0.00017368,2]
[401488134,1768264245431,-5002.435007,0.00017368,2]
[401488135,1768264245440,-1068.697227,0.00017368,2]
[401488136,1768264245450,-5002.435007,0.00017368,2]
[401488137,1768264245459,-1068.697227,0.00017368,2]
[401488138,1768264245469,-1068.697227,0.00017368,2]
[401488139,1768264245478,-151.0,0.00017368,2]
[401488140,1768264245488,-1001.009009,0.00017368,2]
[401488141,1768264245498,-151.0,0.00017368,2]
[401488142,1768264245508,-1001.009009,0.00017368,2]
[401488143,1768264245518,-1001.009009,0.00017368,2]
[401488144,1768264245527,-504161.7830909,0.00017368,2]
[401488145,1768264245537,-5181.0141091,0.00017368,2]
[401488146,1768264245548,-150.0,0.000174,2]
[401488147,1768264245557,-150.0,0.000174,2]
[401488148,1768264245567,-290.8,0.00017416,2]
[401488149,1768264245576,-10000.0,0.00017442,2]
[401488150,1768264245586,-150.0,0.00017446,2]
[401488151,1768264245595,-150.0,0.00017446,2]
[401488152,1768264245605,-150.0,0.0001746,2]
[401488153,1768264245615,-150.0,0.0001746,2]
[401488154,1768264245625,-150.0,0.0001746,2]
[401488155,1768264245635,-290.8,0.00017489,2]
[401488156,1768264245645,-553.64373807,0.00017498,2]
[401488157,1768264245655,-151.0,0.00017498,2]
[401488158,1768264245664,-2000.0,0.000175,2]
[401488159,1768264245674,-186.7312317,0.000175,2]
[401488160,1768264245684,-150.0,0.0001752,2]
[401488161,1768264245693,-158.80989466,0.00017529,2]
[401488162,1768264245703,-500.0,0.00017541,2]
[401488163,1768264245713,-500.0,0.00017541,2]
[401488164,1768264245724,-500.0,0.00017541,2]
[401488165,1768264245735,-150.0,0.0001755,2]
[401488166,1768264245745,-208.0,0.00017553,2]
[401488167,1768264245755,-290.8,0.00017562,2]
[401488168,1768264245764,-208.0,0.00017565,2]
[401488169,1768264245774,-150.0,0.00017585,2]
[401488170,1768264245783,-150.0,0.00017585,2]
[401488171,1768264245793,-3996.0,0.00017605,2]
[401488172,1768264245803,-1000.0,0.00017621,2]
[401488173,1768264245813,-1000.0,0.00017621,2]
[401488174,1768264245822,-1000.0,0.00017621,2]
[401488175,1768264245832,-1000.0,0.00017621,2]
[401488176,1768264245842,-1000.0,0.00017621,2]
[401488177,1768264245852,-1000.0,0.00017621,2]
[401488178,1768264245861,-1000.0,0.00017621,2]
[401488179,1768264245871,-1000.0,0.00017621,2]
[401488180,1768264245881,-591.63836331,0.00017621,2]
[401488181,1768264245891,-228.45369785,0.00017621,2]
[401488182,1768264245907,-1000.0,0.00017621,2]
[401488183,1768264245916,-1000.0,0.00017621,2]
[401488184,1768264245926,-1000.0,0.00017621,2]
[401488185,1768264245936,-1000.0,0.00017621,2]
[401488186,1768264245946,-989.61533507,0.00017621,2]
[401488187,1768264245955,-1000.0,0.00017621,2]
[401488188,1768264245965,-208.0,0.00017633,2]
[401488189,1768264245977,-290.8,0.00017635,2]
[401488190,1768264245986,-150.0,0.0001764,2]
[401488191,1768264245996,-150.0,0.0001764,2]
[401488192,1768264246006,-150.0,0.0001764,2]
[401488193,1768264246015,-150.0,0.0001764,2]
[401488194,1768264246024,-3337.78812563,0.0001764,2]
[401488195,1768264246034,-556.81,0.00017653,2]
[401488196,1768264246043,-500.0,0.00017656,2]
[401488197,1768264246053,-500.0,0.00017656,2]
[401488198,1768264246062,-500.0,0.00017699,2]
[401488199,1768264246072,-500.0,0.00017699,2]
[401488200,1768264246081,-500.0,0.00017699,2]
[401488201,1768264246091,-500.0,0.00017699,2]
[401488202,1768264246101,-500.0,0.00017699,2]
[401488203,1768264246110,-500.0,0.00017699,2]
[401488204,1768264246120,-500.0,0.00017699,2]
[401488205,1768264246131,-500.0,0.00017699,2]
[401488206,1768264246140,-6130.0,0.00017699,2]
[401488207,1768264246150,-580.0,0.00017699,2]
[401488208,1768264246160,-150.0,0.00017699,2]
[401488209,1768264246169,-186.7312317,0.000177,2]
[401488210,1768264246179,-290.8,0.00017708,2]
[401488211,1768264246188,-1000.0,0.00017709,2]
[401488212,1768264246198,-866.0,0.00017712,2]
[401488213,1768264246207,-150.0,0.00017723,2]
[401488214,1768264246217,-150.0,0.00017723,2]
[401488215,1768264246227,-1000.0,0.00017746,2]
[401488216,1768264246236,-6130.0,0.00017754,2]
[401488217,1768264246248,-580.0,0.00017754,2]
[401488218,1768264246257,-150.0,0.00017754,2]
[401488221,1768264246546,-208.0,0.00017757,2]
[401488223,1768264246556,-150.0,0.0001776,2]
[401488224,1768264246566,-150.0,0.00017775,2]
[401488225,1768264246575,-290.8,0.00017781,2]
[401488226,1768264246584,-218.56009979,0.00017789,2]
[401488227,1768264246594,-1973.88805131,0.000178,2]
[401488228,1768264246604,-156.587,0.00017807,2]
[401488229,1768264246613,-6130.0,0.00017809,2]
[401488230,1768264246623,-580.0,0.00017809,2]
[401488231,1768264246632,-298.0178051,0.00017809,2]
[401488232,1768264246647,-150.0,0.0001782,2]
[401488233,1768264246656,-150.0,0.0001782,2]
[401488234,1768264246666,-150.0,0.0001782,2]
[401488235,1768264246676,-290.8,0.00017854,2]
[401488236,1768264246686,-200.0,0.00017856,2]
[401488237,1768264246695,-150.0,0.00017862,2]
[401488238,1768264246705,-150.0,0.00017862,2]
[401488239,1768264246715,-6130.0,0.00017863,2]
[401488240,1768264246725,-580.0,0.00017863,2]
[401488241,1768264246736,-1000.0,0.00017867,2]
[401488242,1768264246746,-208.0,0.00017867,2]
[401488243,1768264246756,-150.0,0.0001788,2]
[401488244,1768264246766,-188.73,0.0001789,2]
[401488245,1768264246775,-208.0,0.00017894,2]
[401488246,1768264246785,-175.9,0.00017899,2]
[401488248,1768264246795,-4107.17188437,0.000179,3]
[401488250,1768264246804,-186.24381303,0.000179,2]
[401488252,1768264246814,-186.7312317,0.000179,2]
[401488254,1768264246823,-761.31055,0.000179,2]
[401488256,1768264246833,-6130.0,0.00017918,2]
[401488258,1768264246842,-580.0,0.00017918,2]
[401488260,1768264246851,-290.8,0.00017927,2]
[401488262,1768264246862,-500.0,0.00017973,2]
[401488264,1768264246871,-274.19847964,0.00017973,2]
[401488266,1768264246881,-507.85664462,0.00017973,2]
[401488268,1768264246891,-500.0,0.00017973,2]
[401488270,1768264246904,-500.0,0.00017973,2]
[401488272,1768264246914,-500.0,0.00017973,2]
[401488274,1768264246924,-500.0,0.00017973,2]
[401488276,1768264246934,-500.0,0.00017973,2]
[401488278,1768264246946,-500.0,0.00017973,2]
[401488280,1768264246956,-500.0,0.00017973,2]
[401488283,1768264246966,-183.29515175,0.00017973,2]
[401488285,1768264246976,-150.0,0.00017973,2]
[401488287,1768264246986,-500.0,0.00017973,2]
[401488289,1768264246996,-500.0,0.00017973,2]
[401488291,1768264247006,-500.0,0.00017973,2]
[401488293,1768264247020,-500.0,0.00017973,2]
[401488295,1768264247029,-315.19949159,0.00017973,2]
[401488297,1768264247040,-500.0,0.00017973,2]
[401488299,1768264247049,-500.0,0.00017973,2]
[401488301,1768264247059,-500.0,0.00017973,2]
[401488303,1768264247068,-500.0,0.00017973,2]
[401488305,1768264247079,-500.0,0.00017973,2]
[401488307,1768264247088,-479.79669778,0.00017973,2]
[401488309,1768264247098,-500.0,0.00017973,2]
[401488312,1768264247108,-500.0,0.00017973,2]
[401488314,1768264247117,-281.91943671,0.00017973,2]
[401488316,1768264247127,-500.0,0.00017973,2]
[401488318,1768264247136,-500.0,0.00017973,2]
[401488320,1768264247146,-500.0,0.00017973,2]
[401488322,1768264247156,-500.0,0.00017973,2]
[401488324,1768264247166,-500.0,0.00017973,2]
[401488326,1768264247176,-500.0,0.00017973,2]
[401488328,1768264247185,-500.0,0.00017973,2]
[401488330,1768264247195,-500.0,0.00017973,2]
[401488332,1768264247209,-500.0,0.00017973,2]
[401488333,1768264247219,-500.0,0.00017973,2]
[401488334,1768264247229,-500.0,0.00017973,2]
[401488335,1768264247241,-500.0,0.00017973,2]
[401488336,1768264247251,-500.0,0.00017973,2]
[401488337,1768264247261,-500.0,0.00017973,2]
[401488338,1768264247271,-500.0,0.00017973,2]
[401488339,1768264247281,-500.0,0.00017973,2]
[401488340,1768264247292,-500.0,0.00017973,2]
[401488341,1768264247302,-500.0,0.00017973,2]
[401488342,1768264247313,-6130.0,0.00017973,2]
[401488343,1768264247323,-580.0,0.00017973,2]
[401488344,1768264247333,-500.0,0.00017998,2]
[401488345,1768264247342,-500.0,0.00017998,2]
[401488346,1768264247352,-500.0,0.00017998,2]
[401488347,1768264247362,-500.0,0.00017998,2]
[401488348,1768264247372,-500.0,0.00017999,2]
[401488349,1768264247382,-500.0,0.00017999,2]
[401488350,1768264247392,-500.0,0.00017999,2]
[401488351,1768264247402,-500.0,0.00017999,2]
[401488352,1768264247416,-500.0,0.00017999,2]
[401488353,1768264247425,-500.0,0.00017999,2]
[401488354,1768264247435,-500.0,0.00017999,2]
[401488355,1768264247445,-500.0,0.00017999,2]
[401488356,1768264247455,-500.0,0.00017999,2]
[401488357,1768264247464,-500.0,0.00017999,2]
[401488358,1768264247474,-500.0,0.00017999,2]
[401488359,1768264247484,-500.0,0.00017999,2]
[401488360,1768264247493,-500.0,0.00017999,2]
[401488361,1768264247503,-461.33082284,0.00017999,2]
[401488362,1768264247513,-500.0,0.00017999,2]
[401488363,1768264247523,-500.0,0.00017999,2]
[401488364,1768264247532,-503.26871711,0.00017999,2]
[401488365,1768264247542,-537.43936391,0.00017999,2]
[401488366,1768264247552,-300.0,0.00017999,2]
[401488367,1768264247561,-300.0,0.00017999,2]
[401488368,1768264247571,-150.0,0.00018,2]
[401488369,1768264247582,-265.63774284,0.00018,2]
[401488370,1768264247591,-288.6012408,0.00018,2]
[401488371,1768264247604,-150.0,0.00018,2]
[401488372,1768264247617,-188.80643999,0.00018,2]
[401488373,1768264247627,-150.0,0.00018,2]
[401488374,1768264247637,-150.0,0.00018,2]
[401488375,1768264247647,-268.75380056,0.00018,2]
[401488376,1768264247657,-150.0,0.00018,2]
[401488377,1768264247667,-3726781.9942905,0.00018,2]
[401488378,1768264248290,-1517.46946338,0.00018,2]
[401488379,1768264248302,-7596.3474717,0.00018,2]
[401488380,1768264248314,-94185.45144845,0.00018,2]
[401488381,1768264248627,-1734.89707331,0.00015732,2]
[401488382,1768264248683,-5502.48424085,0.00015732,2]
[401488383,1768264248692,-602.05208237,0.00016003,2]
[401488384,1768264248701,-151.0,0.00016005,2]
[401488385,1768264248710,-151.0,0.00016005,2]
[401488386,1768264248720,-1330.0,0.00017284,2]
[401488387,1768264248729,-1001.009009,0.00017368,2]
[401488388,1768264248738,-3828.760787,0.00017368,2]
[401488389,1768264248748,-3828.760787,0.00017368,2]
[401488390,1768264248757,-47260.4799791,0.00018,2]
[401488391,1768264248768,-126371.88834087,0.00018,2]
[401488392,1768264248851,-1016.0,0.00018,2]
[401488393,1768264248863,-599.16219205,0.00018,2]
[401488394,1768264302032,888.0,0.00027397,120]
[401488404,1768265276694,163.0,0.000273,120]
[401488405,1768265288153,163.2,0.000273,120]
[401488412,1768265432350,-272.0,0.00013221,2]
[401488413,1768265432360,-300.0,0.00013395,2]
[401488414,1768265432372,-1200.0,0.00013395,2]
[401488415,1768265432383,-300.0,0.00013395,2]
[401488416,1768265432392,-500.0,0.00013395,2]
[401488417,1768265432402,-500.0,0.00013395,2]
[401488418,1768265432411,-713.61,0.00013396,2]
[401488419,1768265432421,-12712.44,0.00013397,2]
[401488420,1768265432431,-272.0,0.00013448,2]
[401488421,1768265432440,-713.61,0.0001367,2]
[401488422,1768265432450,-163.0,0.000137,2]
[401488424,1768265432460,-196.00514886,0.000137,2]
[401488426,1768265432469,-345.79137629,0.000137,2]
[401488428,1768265432478,-2812.56999468,0.000137,2]
[401488430,1768265432488,-8881.74,0.00013789,2]
[401488432,1768265432498,-8881.74,0.00013789,2]
[401488434,1768265432507,-163.69473077,0.00013798,2]
[401488436,1768265432517,-1000000.0,0.00013799,2]
[401488438,1768265432526,-265.50609601,0.000138,2]
[401488440,1768265432535,-3240.0,0.000139,2]
[401488442,1768265432545,-713.61,0.00013944,2]
[401488444,1768265432555,-166.66,0.00014043,2]
[401488446,1768265432564,-150.0,0.00014062,2]
[401488448,1768265432573,-17970.35,0.00014109,2]
[401488450,1768265432583,-9999.99,0.00014109,2]
[401488452,1768265432592,-150.0,0.00014117,2]
[401488454,1768265432602,-272.63375646,0.00014121,2]
[401488456,1768265432611,-150.0,0.00014131,2]
[401488458,1768265432621,-2812.56999466,0.00014167,2]
[401488459,1768265432631,-298.0178051,0.00014172,2]
[401488461,1768265432640,-713.61,0.00014218,2]
[401488463,1768265432649,-1852.42,0.00014246,2]
[401488466,1768265432661,-166.66,0.00014336,2]
[401488468,1768265432671,-166.66,0.00014338,2]
[401488469,1768265432680,-6130.0,0.0001436,2]
[401488472,1768265432696,-990.0,0.0001436,2]
[401488473,1768265432716,-265.50609598,0.00014386,2]
[401488475,1768265432736,-345.79137629,0.000144,2]
[401488478,1768265432747,-6130.0,0.00014415,2]
[401488479,1768265432756,-990.0,0.00014415,2]
[401488482,1768265432768,-6130.0,0.0001447,2]
[401488484,1768265432779,-990.0,0.0001447,2]
[401488486,1768265432789,-713.61,0.00014492,2]
[401488488,1768265432798,-151.0,0.00014496,2]
[401488490,1768265432808,-151.0,0.00014496,2]
[401488492,1768265432819,-151.0,0.00014496,2]
[401488494,1768265432833,-151.0,0.00014496,2]
[401488496,1768265432845,-151.0,0.00014496,2]
[401488498,1768265432856,-151.0,0.00014496,2]
[401488500,1768265432867,-151.0,0.00014496,2]
[401488502,1768265432877,-151.0,0.00014496,2]
[401488504,1768265432887,-151.0,0.00014496,2]
[401488506,1768265432897,-150.99,0.00014504,2]
[401488508,1768265432907,-690.97,0.00014504,2]
[401488510,1768265432917,-4987.2,0.00014504,2]
[401488512,1768265432927,-2182.06,0.00014504,2]
[401488514,1768265432936,-6889.28,0.00014504,2]
[401488516,1768265432946,-19999.99,0.00014504,2]
[401488518,1768265432956,-6130.0,0.00014524,2]
[401488520,1768265432966,-990.0,0.00014524,2]
[401488522,1768265432976,-6130.0,0.00014579,2]
[401488524,1768265432986,-990.0,0.00014579,2]
[401488527,1768265432995,-200.0,0.00014607,2]
[401488529,1768265433006,-500.0,0.00014607,2]
[401488531,1768265433016,-351.52,0.00014607,2]
[401488533,1768265433027,-2812.56999466,0.00014633,2]
[401488535,1768265433036,-6130.0,0.00014634,2]
[401488537,1768265433045,-990.0,0.00014634,2]
[401488539,1768265433054,-166.66,0.00014634,2]
[401488541,1768265433064,-420.0,0.00014684,2]
[401488543,1768265433074,-6130.0,0.00014689,2]
[401488545,1768265433083,-990.0,0.00014689,2]
[401488547,1768265433093,-1680.0,0.00014735,2]
[401488548,1768265433103,-6130.0,0.00014744,2]
[401488550,1768265433117,-990.0,0.00014744,2]
[401488552,1768265433127,-713.61,0.00014766,2]
[401488554,1768265433137,-6130.0,0.00014798,2]
[401488556,1768265433146,-990.0,0.00014798,2]
[401488558,1768265433156,-166.66,0.00014809,2]
[401488560,1768265433166,-808.16910868,0.00014828,2]
[401488561,1768265433176,-195.0,0.00014838,2]
[401488563,1768265433186,-6130.0,0.00014853,2]
[401488565,1768265433196,-990.0,0.00014853,2]
[401488567,1768265433207,-250.0,0.00014866,2]
[401488569,1768265433216,-150.0,0.00014866,2]
[401488570,1768265433227,-163.0,0.000149,2]
[401488571,1768265433237,-6130.0,0.00014908,2]
[401488572,1768265433246,-990.0,0.00014908,2]
[401488573,1768265433257,-166.66,0.0001493,2]
[401488574,1768265433267,-6130.0,0.00014963,2]
[401488575,1768265433276,-990.0,0.00014963,2]
[401488576,1768265433286,-265.50609598,0.00014971,2]
[401488577,1768265433299,-6130.0,0.00015018,2]
[401488578,1768265433308,-990.0,0.00015018,2]
[401488579,1768265433318,-713.61,0.0001504,2]
[401488580,1768265433329,-6130.0,0.00015072,2]
[401488581,1768265433338,-990.0,0.00015072,2]
[401488582,1768265433348,-345.79137629,0.000151,2]
[401488583,1768265433357,-2812.56999466,0.000151,2]
[401488584,1768265433368,-1000.0,0.00015104,2]
[401488585,1768265433378,-6130.0,0.00015127,2]
[401488586,1768265433387,-990.0,0.00015127,2]
[401488587,1768265433397,-412.4,0.00015181,2]
[401488588,1768265433407,-6130.0,0.00015182,2]
[401488589,1768265433417,-990.0,0.00015182,2]
[401488590,1768265433426,-16247.02353347,0.00015182,2]
[401488591,1768265433436,-2500.0,0.00015189,2]
[401488592,1768265433446,-166.66,0.00015225,2]
[401488593,1768265433457,-6130.0,0.00015237,2]
[401488594,1768265433467,-990.0,0.00015237,2]
[401488595,1768265433477,-166.66,0.00015282,2]
[401488596,1768265433487,-500.0,0.00015288,2]
[401488597,1768265433496,-500.0,0.00015288,2]
[401488598,1768265433506,-500.0,0.00015288,2]
[401488599,1768265433516,-500.0,0.00015288,2]
[401488600,1768265433526,-500.0,0.00015288,2]
[401488601,1768265433536,-500.0,0.00015288,2]
[401488602,1768265433545,-500.0,0.00015288,2]
[401488603,1768265433555,-500.0,0.00015288,2]
[401488604,1768265433565,-500.0,0.00015288,2]
[401488605,1768265433576,-500.0,0.00015288,2]
[401488606,1768265433586,-500.0,0.00015288,2]
[401488607,1768265433595,-500.0,0.00015288,2]
[401488608,1768265433605,-622.57091342,0.00015288,2]
[401488609,1768265433615,-500.0,0.00015288,2]
[401488610,1768265433624,-500.0,0.00015288,2]
[401488611,1768265433634,-500.0,0.00015288,2]